bitfinex/quotes_ETHUSD_20240711
["timestamp","ask_amount","ask_price","bid_price","bid_amount"]
[1720710435241,0.07916798,3158.2,3157.5,3.16703]
[1720710435435,3.16647,3158.1,3157.6,0.06948322]
[1720710435743,3.16666,3157.9,3157.0,3.1675]
[1720710435896,3.16666,3157.9,3157.7,0.06935919]
[1720710436240,3.16666,3157.9,3157.2,3.16734]
[1720710436412,3.16666,3157.9,3157.8,0.06934251]
[1720710436745,3.16666,3157.9,3157.2,3.16734]
[1720710437037,0.3483307,3157.8,3157.2,3.16734]
[1720710437831,3.483297,3158.0,3157.1,7.29]
[1720710438029,3.16668,3157.9,3157.1,7.29]
[1720710438944,0.316647,3158.0,3157.1,7.29]
[1720710439154,2.272,3158.4,3157.2,0.06334099]
[1720710439307,2.272,3158.4,3157.6,3.16695]
[1720710439506,8.60445,3158.4,3157.6,3.16695]
[1720710439721,5.43822,3158.4,3157.6,3.16695]
[1720710440451,2.4269,3158.8,3157.8,3.16675]
[1720710440634,2.4269,3158.8,3158.0,3.1665]
[1720710441393,0.73,3158.9,3158.0,3.16651]
[1720710441640,6.33159,3158.8,3157.8,6.33338]
[1720710441843,6.33159,3158.8,3157.8,3.16667]
[1720710442018,3.16575,3158.8,3158.0,3.16654]
[1720710442811,6.3316,3158.8,3158.1,0.06928564]
[1720710443207,6.33124,3159.0,3158.1,0.06928564]
[1720710443412,3.81476948,3158.9,3158.1,0.06928564]
[1720710444646,3.81476948,3158.9,3158.4,3.16614]
[1720710444647,0.64910948,3158.9,3158.4,3.16614]
[1720710444856,2.4371,3159.3,3158.4,3.16614]
[1720710445010,5.60237,3159.3,3158.5,0.06890382]
[1720710445206,6.32983,3159.7,3158.7,3.16584]
[1720710445422,2.2538,3159.7,3158.8,0.06331342]
[1720710445641,2.2538,3159.7,3158.8,0.06885383]
[1720710445847,2.2538,3159.7,3158.6,2.222]
[1720710445848,2.2538,3159.7,3158.7,0.06330839]
[1720710446049,2.2538,3159.7,3158.9,0.06883716]
[1720710446231,0.541861,3159.6,3158.8,0.06885383]
[1720710446516,0.541861,3159.6,3159.0,3.16554]
[1720710447056,3.16516,3159.4,3159.1,0.06880384]
[1720710447347,3.24440238,3159.3,3158.6,3.16594]
[1720710447646,3.24440238,3159.3,3159.2,0.06878718]
[1720710447871,3.24440238,3159.3,3158.5,10.45604]
[1720710448067,0.32444024,3159.2,3158.4,3.16613]
[1720710448274,0.07914258,3159.1,3158.6,0.06888716]
[1720710449152,0.32444024,3159.2,3158.6,0.06888716]
[1720710449727,0.40358276,3159.2,3158.6,0.06888716]
[1720710449956,3.52240928,3159.1,3158.3,3.16626]
[1720710450376,3.52240928,3159.1,3158.4,0.06892049]
[1720710450555,0.35688928,3159.1,3158.5,3.16603]
[1720710450869,0.35688928,3159.1,3158.5,3.23493382]
[1720710451073,3.1651,3159.5,3158.5,3.23493382]
[1720710451283,2.2538,3159.7,3158.6,0.06331521]
[1720710451432,2.2538,3159.7,3158.8,3.1657]
[1720710451433,5.41867,3159.7,3158.8,3.1657]
[1720710451634,0.07913548,3159.6,3158.5,0.06890382]
[1720710451874,3.16528,3159.3,3158.5,3.16598]
[1720710452030,3.16528,3159.3,3158.4,3.16608]
[1720710452031,0.316528,3159.2,3158.6,3.23483716]
[1720710452346,3.5610405,3159.2,3158.6,0.06888716]
[1720710452542,3.5610405,3159.2,3157.9,7.29]
[1720710452543,3.16582,3158.8,3157.9,7.29]
[1720710452747,3.16582,3158.8,3158.7,0.06887049]
[1720710452978,3.24497634,3158.8,3158.7,0.06887049]
[1720710453140,4.03724363,3158.8,3158.0,3.16655]
[1720710453567,3.24503654,3158.7,3158.1,0.06660058]
[1720710453869,0.07915654,3158.7,3158.1,0.06660058]
[1720710454046,0.87142363,3158.8,3158.2,3.16629]
[1720710454246,0.316528,3159.2,3158.4,3.16612]
[1720710454559,0.316528,3159.2,3158.5,0.06654302]
[1720710454560,0.39567072,3159.2,3158.5,0.06654302]
[1720710454871,3.16582,3158.8,3158.0,3.16655]
[1720710455057,3.24501655,3158.7,3157.9,7.29]
[1720710455375,3.24501655,3158.7,3158.0,0.06662637]
[1720710455682,0.32450166,3158.6,3158.0,0.06662637]
[1720710456233,3.16551,3159.1,3158.2,3.16635]
[1720710456234,3.16566,3158.9,3158.2,3.16635]
[1720710456671,3.16551,3159.1,3158.3,3.23281636]
[1720710456878,1.09630435,3159.0,3158.5,3.16604]
[1720710457045,0.316528,3159.2,3158.5,3.16604]
[1720710457234,1.09626561,3159.1,3158.6,0.06654005]
[1720710457435,1.09626561,3159.1,3157.8,0.6]
[1720710457436,1.09626561,3159.0,3158.0,3.16655]
[1720710457672,0.43409142,3158.9,3158.5,3.16598]
[1720710457871,0.316528,3159.2,3158.5,3.16598]
[1720710458181,1.09625208,3159.1,3158.6,0.06650124]
[1720710458351,1.09625208,3159.0,3158.6,0.06650124]
[1720710458674,0.39567119,3159.2,3158.6,0.06650124]
[1720710458994,3.24473319,3159.0,3158.1,3.1664]
[1720710459172,0.75065536,3158.9,3158.7,0.06578651]
[1720710459479,1.8469358,3158.9,3158.3,3.16623]
[1720710459675,0.75065536,3158.9,3158.4,3.16614]
[1720710459879,3.481968,3159.2,3158.4,3.23198107]
[1720710460078,1.09625726,3159.1,3158.5,3.16598]
[1720710460282,1.09625726,3159.0,3158.6,3.23166774]
[1720710460455,0.316528,3159.2,3158.7,3.16585]
[1720710460657,1.09618139,3159.1,3158.7,3.16585]
[1720710460856,0.316528,3159.2,3158.8,0.06577441]
[1720710461183,1.09620054,3159.1,3158.7,6.33163]
[1720710461389,0.316528,3159.2,3158.9,0.06575774]
[1720710461611,0.316528,3159.2,3158.1,10.45642]
[1720710461612,1.09620321,3159.1,3158.3,3.1662]
[1720710461760,3.16602,3158.6,3158.1,7.29]
[1720710462082,4.65822331,3158.5,3158.1,7.29]
[1720710462295,4.26248992,3158.4,3158.1,7.29]
[1720710462461,1.09632992,3158.3,3158.1,7.29]
[1720710462796,0.316602,3158.5,3158.1,7.29]
[1720710462797,1.09632992,3158.2,3158.1,7.29]
[1720710463000,1.09632992,3158.4,3157.8,3.76673]
[1720710463371,1.55421911,3158.4,3157.8,3.76673]
[1720710463704,1.09632992,3158.3,3157.9,3.16665]
[1720710463856,1.09632992,3158.7,3157.9,3.16665]
[1720710464056,4.26223992,3158.7,3157.9,3.16665]
[1720710464366,1.09632992,3158.6,3157.8,0.6]
[1720710464597,1.09632992,3158.6,3157.8,3.76672]
[1720710464790,1.76561391,3158.6,3157.9,3.16663]
[1720710465089,1.09632992,3158.5,3157.9,3.16663]
[1720710467575,1.09632992,3158.5,3157.9,6.3332]
[1720710467887,3.16617,3158.4,3157.8,0.6]
[1720710468060,4.57934749,3158.3,3157.8,0.6]
[1720710468264,5.56797,3158.1,3157.8,0.6]
[1720710468482,1.17562182,3158.0,3157.8,0.6]
[1720710468679,4.26311049,3157.9,3157.8,0.6]
[1720710469312,5.64490033,3157.9,3157.8,0.6]
[1720710469460,9.9407645,3157.9,3157.8,0.6]
[1720710469993,3.6074445,3157.9,3156.7,7.29]
[1720710470216,3.16754,3157.1,3156.2,7.29]
[1720710470432,4.26402049,3157.0,3156.8,0.05801969]
[1720710470723,2.98430014,3156.9,3155.8,5.62336]
[1720710470876,4.26422049,3156.8,3155.8,5.62336]
[1720710471079,0.07920264,3156.7,3155.8,5.62328]
[1720710471279,1.17626293,3156.7,3155.8,5.62328]
[1720710471480,1.09706029,3156.6,3155.8,5.62328]
[1720710471704,0.07920264,3156.7,3156.0,3.16853]
[1720710471906,1.09706608,3156.6,3156.1,3.16846]
[1720710472119,3.16777,3156.8,3156.1,3.16846]
[1720710472328,2.47935958,3156.7,3156.1,3.16846]
[1720710472635,5.41565733,3156.6,3156.2,0.05811982]
[1720710472801,6.33652,3156.3,3156.2,0.05811982]
[1720710472997,7.38129325,3156.3,3155.2,0.4]
[1720710473319,3.16898,3155.6,3155.2,0.4]
[1720710473521,3.83086969,3155.8,3155.2,0.4]
[1720710473522,3.24831348,3155.5,3155.2,0.4]
[1720710473820,6.33854,3155.3,3155.2,0.4]
[1720710474192,7.72156791,3155.3,3155.2,0.4]
[1720710474395,6.33854,3155.3,3155.2,0.4]
[1720710474938,3.16921,3155.4,3155.2,0.4]
[1720710475219,5.49518,3155.8,3155.2,0.4]
[1720710475428,1.32361869,3156.3,3155.2,0.4]
[1720710475429,0.66180934,3156.2,3155.2,0.4]
[1720710475584,3.16858,3156.0,3155.2,0.4]
[1720710476924,0.07922702,3155.9,3155.2,0.4]
[1720710477221,3.16871,3155.9,3155.2,0.4]
[1720710477423,3.16896,3155.7,3155.2,0.4]
[1720710477633,3.2482135,3155.6,3155.2,0.4]
[1720710477996,3.81058036,3155.7,3155.2,0.4]
[1720710478198,3.16916,3155.5,3155.2,0.4]
[1720710478724,3.16912,3155.5,3155.2,0.4]
[1720710479092,3.16918,3155.4,3155.2,0.4]
[1720710479366,3.16862,3156.0,3155.2,0.4]
[1720710479367,6.41777907,3155.3,3155.2,0.4]
[1720710479501,3.17009,3154.5,3154.2,7.29]
[1720710479842,6.34034,3154.4,3154.3,0.05388296]
[1720710479996,6.4196133,3154.4,3154.3,0.05388296]
[1720710480207,6.4196133,3154.4,3153.3,7.29]
[1720710480208,3.17075,3153.9,3153.3,7.29]
[1720710480552,6.34104,3154.1,3153.1,3.17146]
[1720710480701,3.17049,3154.1,3153.4,0.04849109]
[1720710480898,2.4274,3154.4,3153.2,0.317146]
[1720710481146,0.65936261,3154.9,3154.0,3.17056]
[1720710481303,4.14630652,3155.5,3153.4,2.966]
[1720710481304,3.16923,3155.4,3154.3,3.1702]
[1720710481498,3.16928,3155.3,3154.4,3.21884295]
[1720710481707,5.66703,3155.5,3154.4,3.85775625]
[1720710481907,3.16938,3155.2,3154.4,0.68758625]
[1720710482132,3.16938,3155.2,3154.0,3.17057]
[1720710482133,0.07924415,3155.1,3154.0,3.17057]
[1720710482349,3.1696,3155.0,3154.5,0.04865167]
[1720710482700,3.1696,3155.0,3154.6,0.04863496]
[1720710482903,3.24862969,3155.2,3154.2,3.17035]
[1720710483104,3.24862926,3155.2,3154.0,3.17057]
[1720710483305,3.24862926,3155.2,3154.3,0.04868509]
[1720710483306,3.16959,3155.0,3154.3,0.04868509]
[1720710483634,0.07924973,3155.0,3154.4,0.04866838]
[1720710483942,0.07924973,3155.0,3153.6,3.17095]
[1720710483943,3.17016,3154.5,3153.6,3.17095]
[1720710484309,3.17016,3154.5,3153.7,0.04719257]
[1720710484646,3.17049,3154.1,3153.7,0.04719257]
[1720710484944,3.17049,3154.1,3153.2,7.607146]
[1720710485144,3.17037,3154.3,3153.8,0.0455836]
[1720710485367,3.17037,3154.3,3153.3,4.2491216]
[1720710485525,3.17037,3154.3,3153.9,0.04556689]
[1720710485734,3.17037,3154.3,3153.3,4.2491216]
[1720710486036,0.07926875,3154.2,3153.4,0.04565048]
[1720710486239,3.17012,3154.5,3153.4,3.67187458]
[1720710486437,3.16971,3154.9,3153.8,3.17071]
[1720710486760,3.17019,3154.4,3153.9,0.04556689]
[1720710486949,3.17019,3154.4,3153.4,3.6262441]
[1720710487264,3.17005,3154.6,3154.0,0.04555017]
[1720710487477,3.17005,3154.6,3153.6,3.17097]
[1720710487626,0.32486293,3155.2,3154.2,2.346]
[1720710487827,3.16958,3155.0,3154.2,5.51631]
[1720710488025,3.16977,3154.9,3154.3,0.04550003]
[1720710488228,3.16977,3154.9,3154.0,3.17051]
[1720710488463,3.16954,3155.1,3154.4,0.04585969]
[1720710488628,3.16954,3155.1,3154.2,0.06339984]
[1720710488829,3.16957,3155.0,3154.5,0.04584298]
[1720710489092,3.16957,3155.0,3154.2,0.32338598]
[1720710489093,3.16957,3155.0,3154.2,3.49374598]
[1720710489264,3.16957,3155.0,3154.6,0.04582627]
[1720710489265,3.13617,3155.0,3154.6,0.04582627]
[1720710489472,3.1696,3155.0,3154.2,0.32338598]
[1720710489770,3.16967,3154.9,3154.2,0.32338598]
[1720710489925,3.16967,3154.9,3154.3,0.0458764]
[1720710490342,6.33926,3155.0,3154.1,6.34075]
[1720710490668,3.16967,3154.9,3154.2,1.40896811]
[1720710490867,3.16967,3154.9,3154.2,0.04589311]
[1720710490868,3.17008,3154.5,3154.2,0.04589311]
[1720710491070,3.16993,3154.7,3154.2,0.04589311]
[1720710491230,3.17004,3154.6,3154.0,7.29]
[1720710491562,3.17009,3154.5,3154.0,7.29]
[1720710491941,3.17009,3154.5,3154.1,0.04590982]
[1720710492432,3.17034,3154.3,3154.1,0.04590982]
[1720710492631,3.17043,3154.2,3153.5,7.29]
[1720710492842,3.17075,3153.9,3153.0,7.29]
[1720710493045,6.13573,3154.9,3152.7,3.17182]
[1720710493046,3.17089,3153.7,3152.7,3.17182]
[1720710493341,3.17109,3153.5,3152.7,3.17182]
[1720710493675,3.17109,3153.5,3152.6,11.9665]
[1720710493676,3.17124,3153.4,3152.6,5.6565]
[1720710493862,3.17124,3153.4,3152.6,8.82845]
[1720710494202,3.17124,3153.4,3152.6,5.6565]
[1720710494343,3.805473,3153.4,3152.6,5.6565]
[1720710494695,3.805473,3153.4,3152.6,8.82845]
[1720710495180,3.805473,3153.4,3152.6,5.6565]
[1720710495338,3.88476103,3153.4,3152.6,3.16]
[1720710496176,3.88476103,3153.4,3152.6,6.33197]
[1720710496394,3.805473,3153.4,3152.6,6.33197]
[1720710496882,3.805473,3153.4,3152.6,3.16]
[1720710497093,0.634233,3153.4,3152.7,3.17188]
[1720710497393,3.17108,3153.5,3152.7,3.17188]
[1720710497761,3.25047792,3153.4,3152.6,3.16]
[1720710498494,3.1713,3153.3,3152.6,3.16]
[1720710498790,3.25069378,3153.2,3152.3,3.17222]
[1720710498947,3.17113,3153.5,3152.5,3.17201]
[1720710499450,3.17113,3153.5,3152.6,3.17198]
[1720710499664,3.17121,3153.4,3152.6,3.17198]
[1720710500181,3.17128,3153.3,3152.5,6.34401]
[1720710500493,3.17128,3153.3,3152.5,7.0101332]
[1720710500693,3.17128,3153.3,3152.5,3.8381232]
[1720710501487,2.42779332,3153.2,3151.4,2.4992]
[1720710501652,3.17209,3152.5,3151.8,7.29]
[1720710501848,3.17206,3152.6,3151.5,3.17307]
[1720710501849,0.0793142,3152.4,3151.5,3.17307]
[1720710502072,3.2515342,3152.4,3151.5,3.17307]
[1720710502280,3.17229,3152.3,3151.5,3.17307]
[1720710502503,1.09868037,3152.2,3151.3,10.46321]
[1720710502665,3.17241,3152.2,3151.6,0.0435145]
[1720710502845,0.64238242,3152.3,3151.4,3.17312]
[1720710503050,6.3445,3152.4,3151.7,0.04349776]
[1720710503262,3.17229,3152.3,3151.4,3.17312]
[1720710503464,3.17229,3152.3,3151.8,0.04348102]
[1720710503773,3.17161,3153.0,3151.9,0.04346428]
[1720710503958,3.17184,3152.8,3151.9,3.27959164]
[1720710504354,2.3697,3153.4,3152.0,2.2657]
[1720710504554,3.1713,3153.3,3152.1,3.27930398]
[1720710504806,3.1713,3153.3,3152.2,3.17237]
[1720710504988,3.1713,3153.3,3152.2,0.04341408]
[1720710504989,3.17168,3152.9,3152.2,0.04341408]
[1720710505157,3.17187,3152.8,3151.9,3.17266]
[1720710505502,3.1715,3153.1,3152.1,3.17242]
[1720710505666,0.5541,3153.2,3152.2,3.17235]
[1720710505853,0.5541,3153.2,3152.2,3.21576408]
[1720710506064,3.17109,3153.5,3152.3,0.38501705]
[1720710506300,1.09830573,3153.4,3152.3,0.06344064]
[1720710506464,2.6303,3153.9,3152.3,0.06344064]
[1720710506465,3.17088,3153.7,3152.4,0.04338061]
[1720710506791,1.0983,3153.6,3152.6,3.17195]
[1720710506995,3.17098,3153.6,3152.6,3.17195]
[1720710507196,2.3124,3153.9,3152.7,3.21520042]
[1720710507197,3.487925,3153.8,3152.7,3.21520042]
[1720710507371,1.09819872,3153.7,3152.8,3.17177]
[1720710507725,3.17059,3154.0,3152.9,3.17161]
[1720710507926,3.17085,3153.8,3152.8,3.21508369]
[1720710508218,3.17111,3153.5,3152.9,0.04329696]
[1720710508378,3.17111,3153.5,3152.4,8.6256]
[1720710508578,3.805328,3153.5,3153.0,0.04328024]
[1720710508802,3.805328,3153.5,3152.5,3.7423666]
[1720710508803,1.09826606,3153.4,3152.6,3.17189]
[1720710509008,3.17051,3154.1,3152.6,3.17189]
[1720710509009,3.17062,3154.0,3153.1,0.04326351]
[1720710509178,5.50428,3154.5,3153.0,3.1715]
[1720710509179,1.09817975,3153.9,3153.0,3.1715]
[1720710509386,1.09817975,3153.8,3153.2,0.04324679]
[1720710509616,1.09813198,3153.7,3153.0,3.1715]
[1720710509793,3.59770698,3153.8,3153.3,0.04323007]
[1720710509995,1.09815511,3153.7,3152.8,3.17173]
[1720710510190,3.59770698,3153.8,3153.4,0.04321335]
[1720710510379,3.59770698,3153.8,3152.8,3.17173]
[1720710510380,4.26905417,3153.7,3152.8,3.17173]
[1720710510620,1.09817417,3153.6,3153.5,0.04319663]
[1720710510927,1.09817417,3153.6,3152.8,3.17173]
[1720710510928,4.26915417,3153.6,3152.8,3.17173]
[1720710511081,3.17098,3153.6,3153.5,0.04319663]
[1720710511278,4.26921157,3153.6,3152.7,10.46185]
[1720710511587,1.09822882,3153.5,3152.5,3.7423666]
[1720710511785,3.17117,3153.5,3152.8,0.04331369]
[1720710512106,1.09823469,3153.4,3152.7,6.34364]
[1720710512312,3.17095,3153.7,3152.9,0.04329696]
[1720710512511,1.09816945,3153.6,3152.8,3.21503369]
[1720710512807,1.09816945,3153.5,3152.9,0.04329696]
[1720710513003,1.09816945,3153.6,3152.9,0.04329696]
[1720710514522,1.09816945,3153.6,3152.9,3.21495696]
[1720710515127,1.09816233,3153.5,3152.9,0.68197466]
[1720710515314,2.81273891,3154.5,3153.3,3.17118]
[1720710515315,3.17024,3154.4,3153.3,3.17118]
[1720710515627,0.07927957,3154.7,3153.4,0.10663704]
[1720710515628,1.09796071,3154.3,3153.4,0.10663704]
[1720710515920,3.16993,3154.7,3153.5,0.2367837]
[1720710516124,1.09787257,3154.6,3154.3,3.17019]
[1720710516283,5.4445,3155.5,3154.5,6.33999]
[1720710516483,2.48079007,3155.4,3154.6,3.16995]
[1720710516689,1.89022373,3155.3,3154.6,3.21296504]
[1720710517000,0.79252901,3155.3,3154.8,3.16968]
[1720710517202,3.16898,3155.6,3154.8,3.16968]
[1720710517526,1.09752604,3155.5,3154.9,0.04304937]
[1720710517737,2.4804201,3155.4,3154.9,0.04304937]
[1720710517916,1.09752604,3155.3,3154.9,0.04304937]
[1720710518122,1.09758262,3155.2,3154.4,3.17009]
[1720710518434,3.16911,3155.5,3154.6,3.16993]
[1720710518584,3.11440365,3155.4,3154.7,3.16987]
[1720710518783,1.09761486,3155.3,3154.7,3.21295278]
[1720710518989,0.633813,3155.4,3154.7,3.21295278]
[1720710519222,2.48055489,3155.3,3154.7,3.21295278]
[1720710519400,0.633813,3155.4,3154.9,3.16965]
[1720710519606,2.3571,3156.0,3155.2,3.16936]
[1720710519784,2.3571,3156.0,3154.7,0.06338942]
[1720710519785,2.55952121,3155.9,3155.0,0.04303266]
[1720710519990,3.16913,3155.5,3154.7,7.29]
[1720710520330,2.55953311,3155.4,3155.1,0.04301596]
[1720710520490,2.48028917,3155.3,3154.7,7.29]
[1720710520688,3.16947,3155.1,3154.3,3.17026]
[1720710521043,5.90569248,3155.2,3154.2,10.46035]
[1720710521044,0.25595331,3155.2,3154.4,3.17016]
[1720710521384,0.25595331,3155.2,3154.6,3.1699]
[1720710521634,4.47607715,3155.8,3154.8,3.1697]
[1720710521635,3.82846143,3155.8,3154.8,3.1697]
[1720710521926,3.16908,3155.5,3154.4,3.17009]
[1720710522131,2.4805092,3155.4,3154.4,3.17009]
[1720710522288,2.4805092,3155.3,3154.4,3.17009]
[1720710522488,1.38296697,3155.2,3154.4,3.17009]
[1720710522723,0.4552247,3155.1,3154.4,3.17009]
[1720710523623,0.4552247,3155.1,3154.5,3.17005]
[1720710524299,3.16908,3155.5,3154.5,3.17005]
[1720710524703,3.16908,3155.5,3154.3,3.17021]
[1720710524704,3.16933,3155.3,3154.3,3.17021]
[1720710524905,1.46224856,3155.2,3154.3,3.17021]
[1720710525107,1.46224856,3155.2,3154.2,3.17035]
[1720710525108,4.55246993,3155.1,3154.2,3.17035]
[1720710525434,0.0792511,3155.0,3154.2,3.17035]
[1720710525639,0.32487211,3154.9,3154.3,3.17026]
[1720710525795,3.82894143,3155.3,3154.2,3.17035]
[1720710525796,0.65961143,3155.3,3154.5,3.17]
[1720710525992,0.65961143,3155.5,3154.7,3.16985]
[1720710526214,1.38294491,3155.4,3154.7,3.16985]
[1720710526402,3.16928,3155.3,3154.5,3.17]
[1720710526593,1.38294491,3155.2,3154.5,3.17]
[1720710526807,0.45522249,3155.1,3154.5,3.17]
[1720710527203,0.45522249,3155.1,3154.5,6.33999]
[1720710527403,0.45522249,3155.1,3154.5,3.16999]
[1720710527631,0.45522249,3155.1,3154.3,3.17022]
[1720710527831,0.45522249,3155.1,3154.3,3.17026]
[1720710528147,0.45522249,3155.1,3154.4,3.17009]
[1720710528655,0.36246125,3155.0,3154.4,3.17009]
[1720710529010,0.66143567,3155.3,3154.4,3.17009]
[1720710529011,3.83072567,3155.3,3154.4,3.17009]
[1720710529339,3.16937,3155.2,3154.4,3.17009]
[1720710529732,3.83080567,3155.2,3154.4,3.17009]
[1720710529942,0.66143567,3155.2,3154.6,3.16994]
[1720710530122,0.66143567,3155.4,3154.6,3.16994]
[1720710530317,1.20985016,3155.3,3154.6,3.16994]
[1720710530522,1.20985016,3155.3,3154.4,3.17015]
[1720710530523,4.37913016,3155.3,3154.4,3.17008]
[1720710530751,4.37913016,3155.3,3154.7,0.04277005]
[1720710530925,4.37913016,3155.3,3154.5,3.17001]
[1720710531122,0.54505289,3155.2,3154.8,0.04275334]
[1720710531347,0.54505289,3155.2,3154.5,3.17001]
[1720710531654,1.28573387,3155.2,3154.0,6.34099]
[1720710531866,3.16975,3154.9,3154.6,0.04278675]
[1720710532017,3.17011,3154.5,3153.6,6.34185]
[1720710532540,6.34025,3154.5,3153.6,6.34185]
[1720710532708,3.87027857,3154.5,3153.7,0.04276829]
[1720710533314,7.70187424,3154.5,3153.7,0.04276829]
[1720710533751,3.87027857,3154.5,3153.7,0.04276829]
[1720710534140,4.53171424,3154.5,3153.7,0.04276829]
[1720710534657,1.75938878,3154.4,3153.7,0.04276829]
[1720710534882,0.66143567,3154.5,3153.8,3.17077]
[1720710535021,1.09794165,3154.4,3153.8,6.34147]
[1720710535222,3.83136567,3154.7,3153.9,0.04273485]
[1720710535421,3.83136567,3154.7,3153.8,6.34147]
[1720710535422,4.26782915,3154.6,3153.8,6.34147]
[1720710535618,1.09784915,3154.5,3154.0,0.04271814]
[1720710535939,3.16998,3154.6,3153.8,6.34142]
[1720710536267,1.09788154,3154.5,3153.8,6.34142]
[1720710536462,1.09788154,3154.4,3153.9,0.04273485]
[1720710536961,3.16998,3154.6,3153.9,0.04273485]
[1720710537138,1.0978216,3154.5,3153.9,0.04273485]
[1720710537341,1.0978216,3154.4,3153.9,0.04273485]
[1720710537559,1.75926724,3154.5,3153.9,0.04273485]
[1720710537863,1.09789219,3154.4,3153.9,0.04273485]
[1720710538060,1.09789219,3154.3,3153.9,0.04273485]
[1720710538261,0.66144564,3154.5,3153.9,0.04273485]
[1720710538560,1.09789912,3154.4,3153.9,0.04273485]
[1720710538873,1.09789912,3154.3,3153.5,3.17104]
[1720710539036,4.26816912,3154.3,3154.0,0.04279344]
[1720710539239,1.09789912,3154.2,3153.5,3.17104]
[1720710539452,1.09789912,3154.2,3154.1,0.04277672]
[1720710539453,1.75934476,3154.2,3154.1,0.04277672]
[1720710539621,2.67647275,3154.2,3153.4,3.57117]
[1720710539827,1.09789912,3154.1,3153.4,3.57108]
[1720710540027,1.09789912,3154.1,3153.4,6.74218]
[1720710540266,1.09789912,3154.1,3153.5,3.17098]
[1720710540633,0.66144564,3154.2,3153.6,3.17096]
[1720710540835,1.09799331,3154.1,3153.4,3.57108]
[1720710541057,1.09799331,3154.0,3153.5,3.17107]
[1720710541264,1.09799331,3154.1,3153.5,3.17107]
[1720710541462,1.09799331,3154.0,3153.5,3.17107]
[1720710541634,3.1703,3154.3,3153.5,3.845285]
[1720710541635,3.83174564,3154.3,3153.5,3.845285]
[1720710541862,1.09792641,3154.2,3153.5,3.845285]
[1720710542085,1.09792641,3154.1,3153.5,3.845285]
[1720710542410,3.83174564,3154.3,3153.4,0.4]
[1720710542411,1.09792641,3154.0,3153.4,0.4]
[1720710542573,1.09792641,3154.2,3153.4,0.4]
[1720710542906,1.09792641,3154.2,3153.6,3.17096]
[1720710543275,3.83161564,3154.4,3153.6,3.17096]
[1720710543470,1.09791945,3154.1,3153.6,3.17096]
[1720710543800,1.09791945,3154.0,3153.4,3.57108]
[1720710544014,4.26829945,3154.2,3153.4,0.4]
[1720710544304,3.83202564,3154.0,3153.4,0.4]
[1720710544468,1.09791945,3153.9,3153.4,0.4]
[1720710545060,6.33168564,3154.3,3153.4,0.4]
[1720710545267,1.09792836,3154.2,3153.4,1.074251]
[1720710545467,1.09792836,3154.1,3153.4,1.074251]
[1720710545678,1.09792836,3154.0,3153.4,1.074251]
[1720710546013,1.09792836,3153.9,3153.4,1.074251]
[1720710546209,3.17043,3154.2,3153.4,1.074251]
[1720710546363,1.0979275,3154.1,3153.7,3.1708]
[1720710546573,1.09789343,3154.0,3153.7,6.3416]
[1720710546769,3.83141564,3154.6,3153.7,6.34162]
[1720710547104,0.66144564,3154.4,3153.7,7.02456811]
[1720710547313,1.09781978,3154.3,3153.8,3.17077]
[1720710547814,1.09781978,3154.3,3153.9,0.04264027]
[1720710548466,1.09781978,3154.4,3154.3,3.17027]
[1720710548672,0.66144564,3155.1,3154.6,3.16994]
[1720710548921,1.09755267,3155.0,3154.6,0.06339177]
[1720710549067,1.09755267,3154.9,3154.7,3.21215507]
[1720710549275,0.66144564,3155.2,3154.7,0.04236507]
[1720710549587,0.66144564,3155.2,3154.8,0.04234837]
[1720710549588,0.66144564,3155.0,3154.8,0.04234837]
[1720710549798,1.09762814,3154.9,3154.3,0.539827]
[1720710550005,1.09762814,3154.8,3154.5,3.17007]
[1720710550311,0.66144564,3155.0,3154.5,3.17007]
[1720710550507,1.75909084,3154.9,3154.5,3.17007]
[1720710550670,1.0976452,3154.8,3154.5,3.17007]
[1720710551070,1.75909084,3154.9,3154.5,3.17007]
[1720710551265,1.0976452,3154.8,3154.6,3.16996]
[1720710551509,1.0976452,3154.7,3154.6,3.16996]
[1720710551669,2.3639,3155.0,3154.2,9.518]
[1720710551871,0.66144564,3154.6,3154.2,7.29]
[1720710552081,0.66144564,3154.4,3154.2,7.29]
[1720710552286,3.17043,3154.2,3153.5,7.29]
[1720710552499,0.66317591,3153.7,3153.4,0.4]
[1720710552707,1.09801467,3153.6,3153.4,3.57117]
[1720710552865,0.66317591,3153.7,3153.4,3.57117]
[1720710553076,1.09803368,3153.6,3153.4,3.57117]
[1720710553382,1.09803368,3153.5,3153.4,3.57117]
[1720710553568,1.76120959,3153.5,3153.4,3.57117]
[1720710553775,0.66317591,3153.6,3153.4,3.57117]
[1720710554198,0.66317591,3153.6,3153.5,3.17107]
[1720710554440,0.66317591,3154.0,3153.7,3.17087]
[1720710554643,1.09788715,3153.9,3153.7,3.17087]
[1720710554845,0.66317591,3154.1,3153.7,3.17087]
[1720710555047,0.66317591,3154.2,3153.7,3.23427979]
[1720710555254,0.66317591,3154.2,3153.9,3.17067]
[1720710555713,0.99476386,3154.3,3153.9,3.17067]
[1720710555714,1.76100171,3154.1,3153.9,3.17067]
[1720710556043,0.66317591,3154.1,3153.9,3.17067]
[1720710556750,1.32635182,3154.4,3154.1,3.17041]
[1720710556751,0.66317591,3154.4,3154.1,3.17041]
[1720710557353,0.66317591,3154.4,3154.2,3.17037]
[1720710557354,0.66317591,3154.3,3154.2,3.17037]
[1720710557537,0.66317591,3154.4,3154.2,3.17037]
[1720710557745,1.76093951,3154.3,3154.2,3.17037]
[1720710559350,0.66317591,3154.3,3154.2,3.17037]
[1720710559554,1.09777196,3154.3,3154.2,3.17037]
[1720710559964,0.6640132,3154.3,3154.2,3.17037]
[1720710560158,1.09776102,3154.3,3154.2,3.17037]
[1720710560327,2.09252488,3154.3,3154.2,3.17037]
[1720710560670,2.09412722,3154.3,3154.2,3.17037]
[1720710561071,2.09412106,3154.3,3154.2,3.17037]
[1720710561367,1.09776102,3154.3,3154.2,3.17037]
[1720710561573,2.09412106,3154.3,3154.2,3.17037]